fUST/lending_fUST_20241227
["ID","MTS","AMOUNT","RATE_DAILY","PERIOD"]
[346786009,1735287039877,-500.0,9.386e-05,2]
[346786011,1735287039888,-500.0,9.386e-05,2]
[346786013,1735287039897,-500.0,9.386e-05,2]
[346786015,1735287039906,-500.0,9.386e-05,2]
[346786016,1735287039915,-500.0,9.386e-05,2]
[346786018,1735287039924,-500.0,9.386e-05,2]
[346786020,1735287039933,-500.0,9.386e-05,2]
[346786023,1735287039943,-500.0,9.386e-05,2]
[346786026,1735287039952,-501.2646946,9.386e-05,2]
[346786028,1735287039961,-500.0,9.386e-05,2]
[346786030,1735287039970,-500.0,9.386e-05,2]
[346786032,1735287039979,-638.36280813,9.386e-05,2]
[346786034,1735287039988,-500.0,9.386e-05,2]
[346786036,1735287039997,-500.0,9.386e-05,2]
[346786038,1735287040007,-500.0,9.386e-05,2]
[346786040,1735287040016,-500.0,9.386e-05,2]
[346786042,1735287040025,-500.0,9.386e-05,2]
[346786044,1735287040035,-500.0,9.386e-05,2]
[346786046,1735287040044,-500.0,9.386e-05,2]
[346786048,1735287040053,-500.0,9.386e-05,2]
[346786049,1735287040063,-500.0,9.386e-05,2]
[346786051,1735287040072,-500.0,9.386e-05,2]
[346786053,1735287040084,-500.0,9.386e-05,2]
[346786055,1735287040094,-511.10240387,9.386e-05,2]
[346786057,1735287040103,-500.0,9.386e-05,2]
[346786059,1735287040112,-500.0,9.386e-05,2]
[346786061,1735287040121,-500.0,9.386e-05,2]
[346786063,1735287040131,-500.0,9.386e-05,2]
[346786065,1735287040140,-500.0,9.386e-05,2]
[346786067,1735287040149,-500.0,9.386e-05,2]
[346786069,1735287040159,-500.0,9.386e-05,2]
[346786071,1735287040168,-500.86856316,9.386e-05,2]
[346786073,1735287040177,-500.0,9.386e-05,2]
[346786075,1735287040188,-500.0,9.386e-05,2]
[346786077,1735287040199,-500.0,9.386e-05,2]
[346786079,1735287040208,-500.0,9.386e-05,2]
[346786081,1735287040218,-500.0,9.386e-05,2]
[346786083,1735287040229,-586.26576454,9.386e-05,2]
[346786085,1735287040239,-500.0,9.386e-05,2]
[346786087,1735287040248,-500.0,9.386e-05,2]
[346786089,1735287040259,-500.0,9.386e-05,2]
[346786090,1735287040268,-500.0,9.386e-05,2]
[346786092,1735287040278,-500.0,9.386e-05,2]
[346786094,1735287040289,-500.0,9.386e-05,2]
[346786097,1735287040299,-500.0,9.386e-05,2]
[346786098,1735287040308,-505.69790269,9.386e-05,2]
[346786100,1735287040318,-583.8,9.386e-05,2]
[346786102,1735287040328,-500.0,9.386e-05,2]
[346786104,1735287040337,-500.0,9.386e-05,2]
[346786106,1735287040347,-500.0,9.386e-05,2]
[346786108,1735287040359,-500.0,9.386e-05,2]
[346786110,1735287040368,-500.0,9.386e-05,2]
[346786112,1735287040379,-505.68,9.386e-05,2]
[346786114,1735287040388,-500.0,9.386e-05,2]
[346786116,1735287040398,-1357.38,9.386e-05,2]
[346786118,1735287040408,-500.0,9.386e-05,2]
[346786120,1735287040418,-197.86624621,9.386e-05,2]
[346786122,1735287040427,-500.0,9.386e-05,2]
[346786124,1735287040437,-500.0,9.386e-05,2]
[346786125,1735287040447,-500.0,9.386e-05,2]
[346786126,1735287040456,-500.0,9.386e-05,2]
[346786127,1735287040466,-500.0,9.386e-05,2]
[346786128,1735287040476,-500.0,9.386e-05,2]
[346786129,1735287040486,-500.0,9.386e-05,2]
[346786130,1735287040496,-500.0,9.386e-05,2]
[346786131,1735287040506,-500.0,9.386e-05,2]
[346786132,1735287040516,-500.0,9.386e-05,2]
[346786133,1735287040525,-487.79554073,9.386e-05,2]
[346786134,1735287040535,-500.0,9.386e-05,2]
[346786135,1735287040545,-500.0,9.386e-05,2]
[346786136,1735287040555,-500.0,9.386e-05,2]
[346786137,1735287040564,-500.0,9.386e-05,2]
[346786138,1735287040574,-500.0,9.386e-05,2]
[346786139,1735287040585,-500.0,9.386e-05,2]
[346786140,1735287040595,-343.97493221,9.386e-05,2]
[346786141,1735287040608,-500.0,9.386e-05,2]
[346786142,1735287040618,-500.0,9.386e-05,2]
[346786143,1735287040628,-500.0,9.386e-05,2]
[346786144,1735287040638,-500.0,9.386e-05,2]
[346786145,1735287040647,-500.0,9.386e-05,2]
[346786146,1735287040657,-500.0,9.386e-05,2]
[346786147,1735287040666,-500.0,9.386e-05,2]
[346786148,1735287040675,-500.0,9.386e-05,2]
[346786149,1735287040685,-580.9706661,9.386e-05,2]
[346786150,1735287040694,-500.0,9.386e-05,2]
[346786151,1735287040704,-500.0,9.386e-05,2]
[346786152,1735287040713,-500.0,9.386e-05,2]
[346786153,1735287040722,-500.0,9.386e-05,2]
[346786154,1735287040731,-500.0,9.386e-05,2]
[346786155,1735287040741,-500.0,9.386e-05,2]
[346786156,1735287040750,-582.75,9.386e-05,2]
[346786157,1735287040759,-500.0,9.386e-05,2]
[346786158,1735287040768,-500.0,9.386e-05,2]
[346786159,1735287040777,-500.0,9.386e-05,2]
[346786160,1735287040785,-500.0,9.386e-05,2]
[346786161,1735287040795,-500.0,9.386e-05,2]
[346786162,1735287040804,-500.0,9.386e-05,2]
[346786163,1735287040813,-576.86,9.386e-05,2]
[346786164,1735287040822,-500.0,9.386e-05,2]
[346786165,1735287040834,-500.0,9.386e-05,2]
[346786166,1735287040843,-500.0,9.386e-05,2]
[346786167,1735287040852,-500.0,9.386e-05,2]
[346786168,1735287040861,-500.0,9.386e-05,2]
[346786169,1735287040871,-151.0,9.386e-05,2]
[346786170,1735287040880,-5284.93,9.386e-05,2]
[346786171,1735287040889,-500.0,9.386e-05,2]
[346786172,1735287040899,-500.0,9.386e-05,2]
[346786173,1735287040908,-700.66773317,9.386e-05,2]
[346786174,1735287040917,-501.50833372,9.387e-05,2]
[346786175,1735287040927,-502.22000187,9.387e-05,2]
[346786176,1735287040936,-501.75917748,9.387e-05,2]
[346786177,1735287040947,-501.42444543,9.387e-05,2]
[346786178,1735287040956,-500.0,9.387e-05,2]
[346786179,1735287040966,-500.0,9.387e-05,2]
[346786180,1735287040975,-500.0,9.387e-05,2]
[346786181,1735287040985,-500.0,9.387e-05,2]
[346786182,1735287040994,-500.0,9.387e-05,2]
[346786183,1735287041003,-500.0,9.387e-05,2]
[346786184,1735287041013,-500.0,9.387e-05,2]
[346786185,1735287041023,-187.14908748,9.387e-05,2]
[346786186,1735287041032,-500.0,9.387e-05,2]
[346786187,1735287041042,-156.58795492,9.387e-05,2]
[346786188,1735287041051,-500.0,9.387e-05,2]
[346786189,1735287041060,-517.60360383,9.387e-05,2]
[346786190,1735287041070,-500.0,9.387e-05,2]
[346786191,1735287041081,-500.0,9.387e-05,2]
[346786192,1735287041091,-500.0,9.387e-05,2]
[346786193,1735287041100,-629.30663593,9.387e-05,2]
[346786194,1735287041109,-500.0,9.387e-05,2]
[346786195,1735287041118,-500.0,9.387e-05,2]
[346786196,1735287041128,-576.9748309,9.387e-05,2]
[346786197,1735287041139,-500.0,9.387e-05,2]
[346786198,1735287041148,-500.0,9.387e-05,2]
[346786199,1735287041158,-500.0,9.387e-05,2]
[346786200,1735287041168,-500.0,9.387e-05,2]
[346786201,1735287041178,-509.65846471,9.388e-05,2]
[346786202,1735287041189,-500.0,9.388e-05,2]
[346786203,1735287041200,-500.0,9.388e-05,2]
[346786204,1735287041210,-500.0,9.388e-05,2]
[346786205,1735287041303,-4464.34,9.39e-05,2]
[346786206,1735287041314,-515.57,9.39e-05,2]
[346786207,1735287041328,-500.0,9.39e-05,2]
[346786208,1735287041338,-500.0,9.39e-05,2]
[346786210,1735287041347,-500.0,9.39e-05,2]
[346786212,1735287041357,-469.84880268,9.39e-05,2]
[346786214,1735287041367,-5857.96,9.39e-05,2]
[346786216,1735287041377,-500.0,9.391e-05,2]
[346786218,1735287041387,-394.0,9.651e-05,2]
[346786219,1735287041396,-399.408,9.651e-05,2]
[346786220,1735287041406,-500.0,9.658e-05,2]
[346786222,1735287041415,-500.0,9.658e-05,2]
[346786224,1735287041425,-500.0,9.658e-05,2]
[346786226,1735287041434,-500.0,9.658e-05,2]
[346786228,1735287041444,-5642.95,9.658e-05,2]
[346786229,1735287041453,-1986.78,9.658e-05,2]
[346786231,1735287041463,-500.0,9.658e-05,2]
[346786233,1735287041472,-602.22,9.658e-05,2]
[346786235,1735287041483,-2303.72,9.658e-05,2]
[346786236,1735287041493,-1363.08,9.658e-05,2]
[346786238,1735287041503,-700.65,9.658e-05,2]
[346786240,1735287041513,-847.85,9.658e-05,2]
[346786242,1735287041522,-1080.45,9.658e-05,2]
[346786244,1735287041532,-710.56,9.658e-05,2]
[346786246,1735287041541,-500.0,9.658e-05,2]
[346786248,1735287041550,-482.98860226,9.658e-05,2]
[346786249,1735287041560,-500.0,9.659e-05,2]
[346786252,1735287041569,-500.0,9.659e-05,2]
[346786253,1735287041580,-500.0,9.659e-05,2]
[346786255,1735287041590,-500.0,9.659e-05,2]
[346786258,1735287041600,-259.61967284,9.659e-05,2]
[346786260,1735287041610,-508.85,9.659e-05,2]
[346786262,1735287041620,-500.0,9.659e-05,2]
[346786263,1735287041630,-500.0,9.659e-05,2]
[346786265,1735287041639,-500.0,9.659e-05,2]
[346786267,1735287041649,-500.0,9.659e-05,2]
[346786269,1735287041658,-500.0,9.659e-05,2]
[346786271,1735287041668,-500.0,9.659e-05,2]
[346786273,1735287041677,-500.0,9.659e-05,2]
[346786275,1735287041686,-500.0,9.659e-05,2]
[346786277,1735287041695,-570.39,9.659e-05,2]
[346786279,1735287041704,-500.0,9.659e-05,2]
[346786281,1735287041714,-527.66,9.659e-05,2]
[346786283,1735287041723,-500.0,9.659e-05,2]
[346786285,1735287041733,-500.0,9.659e-05,2]
[346786287,1735287041742,-500.0,9.659e-05,2]
[346786289,1735287041751,-639.67,9.659e-05,2]
[346786291,1735287041760,-500.0,9.659e-05,2]
[346786293,1735287041769,-500.0,9.659e-05,2]
[346786295,1735287041779,-1260.09,9.659e-05,2]
[346786297,1735287041788,-500.0,9.659e-05,2]
[346786299,1735287041798,-500.0,9.659e-05,2]
[346786301,1735287041807,-500.0,9.659e-05,2]
[346786303,1735287041816,-500.0,9.659e-05,2]
[346786305,1735287041826,-500.0,9.659e-05,2]
[346786307,1735287041835,-500.0,9.659e-05,2]
[346786309,1735287041845,-500.0,9.659e-05,2]
[346786310,1735287041854,-598.98,9.659e-05,2]
[346786312,1735287041863,-745.27,9.659e-05,2]
[346786314,1735287041873,-16926.77,9.659e-05,2]
[346786316,1735287041883,-362.88515508,9.659e-05,2]
[346786318,1735287041892,-734.5,9.659e-05,2]
[346786320,1735287041902,-500.0,9.659e-05,2]
[346786322,1735287041911,-699.81,9.659e-05,2]
[346786324,1735287041921,-500.0,9.659e-05,2]
[346786326,1735287041931,-500.0,9.659e-05,2]
[346786328,1735287041940,-500.0,9.659e-05,2]
[346786330,1735287041950,-500.0,9.659e-05,2]
[346786332,1735287041959,-500.0,9.659e-05,2]
[346786334,1735287041969,-500.0,9.659e-05,2]
[346786336,1735287041979,-500.0,9.659e-05,2]
[346786338,1735287041988,-500.0,9.659e-05,2]
[346786340,1735287041998,-500.0,9.659e-05,2]
[346786342,1735287042007,-795.48,9.659e-05,2]
[346786344,1735287042017,-500.0,9.659e-05,2]
[346786346,1735287042026,-1074.52,9.659e-05,2]
[346786348,1735287042036,-500.0,9.659e-05,2]
[346786350,1735287042046,-500.0,9.66e-05,2]
[346786352,1735287042055,-500.0,9.66e-05,2]
[346786354,1735287042064,-500.0,9.66e-05,2]
[346786356,1735287042074,-500.0,9.66e-05,2]
[346786358,1735287042084,-500.0,9.66e-05,2]
[346786360,1735287042094,-500.0,9.66e-05,2]
[346786362,1735287042103,-500.0,9.66e-05,2]
[346786364,1735287042112,-500.0,9.66e-05,2]
[346786366,1735287042121,-500.0,9.66e-05,2]
[346786368,1735287042130,-500.0,9.66e-05,2]
[346786370,1735287042139,-500.0,9.66e-05,2]
[346786372,1735287042150,-500.0,9.66e-05,2]
[346786374,1735287042160,-500.0,9.66e-05,2]
[346786376,1735287042170,-500.0,9.66e-05,2]
[346786378,1735287042179,-517.34,9.66e-05,2]
[346786380,1735287042192,-500.0,9.66e-05,2]
[346786382,1735287042202,-248.59951507,9.66e-05,2]
[346786384,1735287042212,-500.0,9.66e-05,2]
[346786386,1735287042221,-583.8,9.66e-05,2]
[346786388,1735287042231,-500.0,9.66e-05,2]
[346786390,1735287042241,-505.68,9.66e-05,2]
[346786392,1735287042250,-1357.38,9.66e-05,2]
[346786394,1735287042259,-431.86112655,9.66e-05,2]
[346786396,1735287042269,-503.48671904,9.66e-05,2]
[346786398,1735287042278,-500.0,9.66e-05,2]
[346786400,1735287042288,-500.0,9.66e-05,2]
[346786402,1735287042297,-500.0,9.66e-05,2]
[346786404,1735287042306,-500.0,9.66e-05,2]
[346786406,1735287042316,-500.0,9.66e-05,2]
[346786408,1735287042325,-500.0,9.66e-05,2]
[346786410,1735287042336,-500.0,9.66e-05,2]
[346786412,1735287042346,-643.08518902,9.66e-05,2]
[346786414,1735287042356,-500.0,9.66e-05,2]
[346786416,1735287042365,-500.0,9.66e-05,2]
[346786418,1735287042374,-500.0,9.66e-05,2]
[346786420,1735287042384,-500.0,9.66e-05,2]
[346786422,1735287042393,-500.0,9.66e-05,2]
[346786424,1735287042402,-500.0,9.66e-05,2]
[346786426,1735287042412,-643.37185737,9.66e-05,2]
[346786428,1735287042422,-582.75,9.66e-05,2]
[346786430,1735287042432,-500.0,9.66e-05,2]
[346786432,1735287042442,-500.0,9.66e-05,2]
[346786434,1735287042451,-500.0,9.66e-05,2]
[346786436,1735287042460,-500.0,9.66e-05,2]
[346786437,1735287042470,-576.86,9.66e-05,2]
[346786440,1735287042479,-500.0,9.66e-05,2]
[346786442,1735287042489,-5284.93,9.66e-05,2]
[346786444,1735287042499,-500.0,9.66e-05,2]
[346786446,1735287042508,-500.0,9.66e-05,2]
[346786448,1735287042517,-500.0,9.661e-05,2]
[346786450,1735287042526,-500.0,9.661e-05,2]
[346786452,1735287042536,-500.0,9.661e-05,2]
[346786454,1735287042545,-500.0,9.661e-05,2]
[346786456,1735287042555,-500.0,9.662e-05,2]
[346786458,1735287042565,-500.0,9.662e-05,2]
[346786460,1735287042574,-500.0,9.662e-05,2]
[346786462,1735287042585,-4464.34,9.664e-05,2]
[346786464,1735287042595,-515.57,9.664e-05,2]
[346786466,1735287042604,-243.82362179,9.664e-05,2]
[346786468,1735287042613,-500.0,9.664e-05,2]
[346786470,1735287042622,-5857.96,9.664e-05,2]
[346786472,1735287042631,-500.0,9.665e-05,2]
[346786474,1735287042641,-316.239,9.715e-05,2]
[346786476,1735287042651,-700.66773314,9.779e-05,2]
[346786478,1735287042660,-1001.55569054,9.911e-05,2]
[346786480,1735287042670,-189.46,9.932e-05,2]
[346786482,1735287042679,-500.0,9.932e-05,2]
[346786484,1735287042688,-500.0,9.932e-05,2]
[346786486,1735287042697,-500.0,9.932e-05,2]
[346786488,1735287042707,-5642.95,9.932e-05,2]
[346786490,1735287042716,-1986.78,9.932e-05,2]
[346786492,1735287042727,-602.22,9.932e-05,2]
[346786494,1735287042736,-2303.72,9.932e-05,2]
[346786496,1735287042745,-1363.08,9.932e-05,2]
[346786498,1735287042755,-700.65,9.932e-05,2]
[346786500,1735287042764,-847.85,9.932e-05,2]
[346786502,1735287042773,-1080.45,9.932e-05,2]
[346786504,1735287042783,-710.56,9.932e-05,2]
[346786506,1735287042792,-500.0,9.933e-05,2]
[346786508,1735287042802,-500.0,9.933e-05,2]
[346786510,1735287042811,-500.0,9.933e-05,2]
[346786512,1735287042820,-410.84882345,9.933e-05,2]
[346786514,1735287042829,-508.85,9.933e-05,2]
[346786516,1735287042839,-390.49113887,9.933e-05,2]
[346786518,1735287042848,-500.0,9.933e-05,2]
[346786520,1735287042857,-500.0,9.933e-05,2]
[346786522,1735287042866,-500.0,9.933e-05,2]
[346786524,1735287042876,-500.0,9.933e-05,2]
[346786526,1735287042885,-500.0,9.933e-05,2]
[346786528,1735287042894,-500.0,9.933e-05,2]
[346786530,1735287042903,-570.39,9.933e-05,2]
[346786531,1735287042912,-500.0,9.933e-05,2]
[346786533,1735287042922,-527.66,9.933e-05,2]
[346786535,1735287042931,-500.0,9.933e-05,2]
[346786537,1735287042940,-500.0,9.933e-05,2]
[346786539,1735287042950,-639.67,9.933e-05,2]
[346786541,1735287042959,-1260.09,9.933e-05,2]
[346786543,1735287042969,-500.0,9.933e-05,2]
[346786546,1735287042978,-500.0,9.933e-05,2]
[346786548,1735287042987,-500.0,9.933e-05,2]
[346786550,1735287042996,-500.0,9.933e-05,2]
[346786552,1735287043005,-500.0,9.933e-05,2]
[346786554,1735287043014,-598.98,9.933e-05,2]
[346786556,1735287043023,-745.27,9.933e-05,2]
[346786567,1735287043108,-16926.77,9.933e-05,2]
[346786570,1735287043118,-734.5,9.933e-05,2]
[346786572,1735287043127,-500.0,9.933e-05,2]
[346786574,1735287043136,-699.81,9.933e-05,2]
[346786576,1735287043146,-500.0,9.933e-05,2]
[346786578,1735287043156,-500.0,9.933e-05,2]
[346786580,1735287043165,-220.23173412,9.933e-05,2]
[346786581,1735287043174,-500.0,9.933e-05,2]
[346786582,1735287043183,-500.0,9.933e-05,2]
[346786583,1735287043198,-500.0,9.933e-05,2]
[346786584,1735287043207,-500.0,9.933e-05,2]
[346786585,1735287043217,-269.44979682,9.933e-05,2]
[346786586,1735287043226,-500.0,9.933e-05,2]
[346786588,1735287043237,-795.48,9.933e-05,2]
[346786590,1735287043246,-500.0,9.933e-05,2]
[346786592,1735287043255,-1074.52,9.933e-05,2]
[346786594,1735287043268,-500.0,9.933e-05,2]
[346786596,1735287043278,-152.51569471,9.934e-05,2]
[346786598,1735287043287,-500.0,9.934e-05,2]
[346786600,1735287043296,-361.5006161,9.934e-05,2]
[346786602,1735287043306,-500.0,9.934e-05,2]
[346786605,1735287043316,-500.0,9.934e-05,2]
[346786607,1735287043326,-500.0,9.934e-05,2]
[346786608,1735287043336,-500.0,9.934e-05,2]
[346786611,1735287043346,-500.0,9.934e-05,2]
[346786612,1735287043355,-500.0,9.934e-05,2]
[346786614,1735287043365,-500.0,9.934e-05,2]
[346786617,1735287043374,-583.8,9.934e-05,2]
[346786619,1735287043384,-500.0,9.934e-05,2]
[346786621,1735287043394,-505.68,9.934e-05,2]
[346786623,1735287043403,-1357.38,9.934e-05,2]
[346786625,1735287043412,-500.0,9.934e-05,2]
[346786627,1735287043422,-500.0,9.934e-05,2]
[346786629,1735287043433,-500.0,9.934e-05,2]
[346786631,1735287043443,-500.0,9.934e-05,2]
[346786633,1735287043453,-500.0,9.934e-05,2]
[346786635,1735287043462,-500.0,9.934e-05,2]
[346786637,1735287043472,-500.0,9.934e-05,2]
[346786639,1735287043481,-500.0,9.934e-05,2]
[346786641,1735287043490,-500.0,9.934e-05,2]
[346786643,1735287043499,-500.0,9.934e-05,2]
[346786645,1735287043509,-500.0,9.934e-05,2]
[346786647,1735287043519,-500.0,9.934e-05,2]
[346786649,1735287043528,-500.0,9.934e-05,2]
[346786651,1735287043538,-582.75,9.934e-05,2]
[346786653,1735287043547,-221.38017867,9.934e-05,2]
[346786655,1735287043557,-500.0,9.934e-05,2]
[346786657,1735287043566,-500.0,9.934e-05,2]
[346786659,1735287043575,-576.86,9.934e-05,2]
[346786661,1735287043585,-500.0,9.934e-05,2]
[346786663,1735287043595,-5284.93,9.934e-05,2]
[346786665,1735287043604,-500.0,9.934e-05,2]
[346786667,1735287043614,-500.0,9.935e-05,2]
[346786669,1735287043623,-500.0,9.935e-05,2]
[346786671,1735287043632,-500.0,9.936e-05,2]
[346786673,1735287043642,-500.0,9.936e-05,2]
[346786675,1735287043651,-500.0,9.936e-05,2]
[346786677,1735287043660,-4464.34,9.938e-05,2]
[346786680,1735287043669,-515.57,9.938e-05,2]
[346786682,1735287043679,-500.0,9.938e-05,2]
[346786684,1735287043688,-5857.96,9.938e-05,2]
[346786686,1735287043698,-700.66773314,0.00010073,2]
[346786688,1735287043708,-500.0,0.00010206,2]
[346786690,1735287043717,-500.0,0.00010206,2]
[346786692,1735287043725,-500.0,0.00010206,2]
[346786694,1735287043734,-5642.95,0.00010206,2]
[346786696,1735287043744,-1986.78,0.00010206,2]
[346786698,1735287043753,-602.22,0.00010206,2]
[346786700,1735287043762,-2303.72,0.00010206,2]
[346786702,1735287043774,-1363.08,0.00010206,2]
[346786704,1735287043783,-700.65,0.00010206,2]
[346786706,1735287043792,-847.85,0.00010206,2]
[346786708,1735287043801,-1080.45,0.00010206,2]
[346786710,1735287043811,-710.56,0.00010206,2]
[346786712,1735287043820,-500.0,0.00010207,2]
[346786714,1735287043829,-500.0,0.00010207,2]
[346786716,1735287043838,-500.0,0.00010207,2]
[346786718,1735287043847,-508.85,0.00010207,2]
[346786720,1735287043856,-500.0,0.00010207,2]
[346786722,1735287043865,-500.0,0.00010207,2]
[346786724,1735287043875,-500.0,0.00010207,2]
[346786726,1735287043885,-500.0,0.00010207,2]
[346786728,1735287043894,-500.0,0.00010207,2]
[346786730,1735287043903,-500.0,0.00010207,2]
[346786732,1735287043912,-570.39,0.00010207,2]
[346786734,1735287043921,-500.0,0.00010207,2]
[346786736,1735287043930,-527.66,0.00010207,2]
[346786738,1735287043939,-546.23754811,0.00010207,2]
[346786741,1735287043949,-500.0,0.00010207,2]
[346786743,1735287043959,-639.67,0.00010207,2]
[346786745,1735287043968,-1260.09,0.00010207,2]
[346786746,1735287043977,-500.0,0.00010207,2]
[346786749,1735287043986,-500.0,0.00010207,2]
[346786751,1735287043996,-500.0,0.00010207,2]
[346786752,1735287044005,-500.0,0.00010207,2]
[346786755,1735287044014,-500.0,0.00010207,2]
[346786757,1735287044024,-598.98,0.00010207,2]
[346786759,1735287044033,-745.27,0.00010207,2]
[346786761,1735287044042,-16926.77,0.00010207,2]
[346786763,1735287044051,-734.5,0.00010207,2]
[346786765,1735287044060,-500.0,0.00010207,2]
[346786767,1735287044070,-699.81,0.00010207,2]
[346786769,1735287044081,-500.0,0.00010207,2]
[346786771,1735287044089,-500.0,0.00010207,2]
[346786773,1735287044098,-500.0,0.00010207,2]
[346786775,1735287044107,-584.26599568,0.00010207,2]
[346786777,1735287044117,-500.0,0.00010207,2]
[346786779,1735287044126,-500.0,0.00010207,2]
[346786781,1735287044135,-500.0,0.00010207,2]
[346786783,1735287044143,-795.48,0.00010207,2]
[346786785,1735287044152,-500.0,0.00010207,2]
[346786787,1735287044162,-1074.52,0.00010207,2]
[346786789,1735287044171,-500.0,0.00010207,2]
[346786791,1735287044180,-500.0,0.00010208,2]
[346786793,1735287044191,-500.0,0.00010208,2]
[346786795,1735287044200,-500.0,0.00010208,2]
[346786797,1735287044210,-282.81079559,0.00010208,2]
[346786799,1735287044219,-500.0,0.00010208,2]
[346786800,1735287044228,-500.0,0.00010208,2]
[346786803,1735287044237,-583.8,0.00010208,2]
[346786805,1735287044247,-231.6604741,0.00010208,2]
[346786807,1735287044257,-505.68,0.00010208,2]
[346786809,1735287044267,-1357.38,0.00010208,2]
[346786811,1735287044276,-500.0,0.00010208,2]
[346786813,1735287044285,-500.0,0.00010208,2]
[346786814,1735287044294,-500.0,0.00010208,2]
[346786816,1735287044304,-500.0,0.00010208,2]
[346786818,1735287044313,-500.0,0.00010208,2]
[346786820,1735287044324,-500.0,0.00010208,2]
[346786822,1735287044338,-500.0,0.00010208,2]
[346786824,1735287044348,-500.0,0.00010208,2]
[346786826,1735287044357,-500.0,0.00010208,2]
[346786828,1735287044367,-500.0,0.00010208,2]
[346786830,1735287044377,-500.0,0.00010208,2]
[346786832,1735287044387,-500.0,0.00010208,2]
[346786834,1735287044396,-500.0,0.00010208,2]
[346786836,1735287044405,-582.75,0.00010208,2]
[346786838,1735287044416,-453.67185648,0.00010208,2]
[346786840,1735287044426,-420.05391308,0.00010208,2]
[346786842,1735287044435,-576.86,0.00010208,2]
[346786844,1735287044445,-500.0,0.00010208,2]
[346786846,1735287044455,-5284.93,0.00010208,2]
[346786848,1735287044465,-500.0,0.00010208,2]
[346786850,1735287044475,-500.0,0.00010209,2]
[346786852,1735287044484,-534.13055537,0.00010209,2]
[346786854,1735287044494,-241.57195134,0.0001021,2]
[346786856,1735287044503,-500.0,0.0001021,2]
[346786858,1735287044512,-500.0,0.0001021,2]
[346786860,1735287044522,-4464.34,0.00010212,2]
[346786862,1735287044531,-515.57,0.00010212,2]
[346786864,1735287044541,-500.0,0.00010212,2]
[346786866,1735287044550,-5857.96,0.00010212,2]
[346786868,1735287044560,-676.447,0.0001022,2]
[346786870,1735287044569,-420.0,0.00010321,2]
[346786872,1735287044582,-420.0,0.00010321,2]
[346786874,1735287044591,-155.0,0.00010338,2]
[346786876,1735287044601,-155.0,0.00010338,2]
[346786878,1735287044610,-155.0,0.00010338,2]
[346786880,1735287044619,-155.0,0.00010338,2]
[346786882,1735287044628,-158.25,0.00010338,2]
[346786884,1735287044638,-618.75092992,0.00010378,2]
[346786886,1735287044647,-700.66773314,0.00010466,2]
[346786888,1735287044656,-500.0,0.0001048,2]
[346786890,1735287044665,-500.0,0.0001048,2]
[346786892,1735287044675,-500.0,0.0001048,2]
[346786894,1735287044684,-5642.95,0.0001048,2]
[346786904,1735287044767,-1986.78,0.0001048,2]
[346786906,1735287044777,-602.22,0.0001048,2]
[346786908,1735287044786,-2303.72,0.0001048,2]
[346786910,1735287044796,-1363.08,0.0001048,2]
[346786912,1735287044805,-700.65,0.0001048,2]
[346786914,1735287044813,-847.85,0.0001048,2]
[346786917,1735287044823,-1080.45,0.0001048,2]
[346786918,1735287044833,-710.56,0.0001048,2]
[346786921,1735287044842,-523.97956359,0.00010481,2]
[346786922,1735287044851,-299.25351859,0.00010481,2]
[346786924,1735287044861,-500.0,0.00010481,2]
[346786926,1735287044870,-508.85,0.00010481,2]
[346786929,1735287044879,-500.0,0.00010481,2]
[346786931,1735287044888,-500.0,0.00010481,2]